fUST/lending_fUST_20240218
["ID","MTS","AMOUNT","RATE_DAILY","PERIOD"]
[314362010,1708230641444,-500.0,0.00027671,2]
[314362011,1708230641453,-225.96099461,0.00027671,2]
[314362012,1708230641463,-500.0,0.00027671,2]
[314362013,1708230641473,-500.0,0.00027671,2]
[314362014,1708230641483,-500.0,0.00027671,2]
[314362015,1708230641493,-500.0,0.00027671,2]
[314362016,1708230641503,-500.0,0.00027671,2]
[314362017,1708230641512,-500.0,0.00027671,2]
[314362018,1708230641521,-576.93,0.00027671,2]
[314362019,1708230641530,-509.42747849,0.00027671,2]
[314362020,1708230641540,-500.0,0.00027671,2]
[314362021,1708230641549,-500.0,0.00027671,2]
[314362022,1708230641558,-390.0,0.00027671,2]
[314362023,1708230641567,-479.12461434,0.00027671,2]
[314362024,1708230641577,-500.0,0.00027671,2]
[314362025,1708230641586,-467.44471957,0.00027671,2]
[314362026,1708230641596,-500.0,0.00027671,2]
[314362027,1708230641607,-500.0,0.00027671,2]
[314362028,1708230641617,-503.89435291,0.00027671,2]
[314362029,1708230641627,-500.0,0.00027671,2]
[314362030,1708230641636,-500.0,0.00027671,2]
[314362031,1708230641645,-500.0,0.00027671,2]
[314362032,1708230641655,-500.0,0.00027671,2]
[314362033,1708230641668,-500.0,0.00027671,2]
[314362034,1708230641678,-500.0,0.00027671,2]
[314362035,1708230641687,-3539.24,0.00027671,2]
[314362036,1708230641697,-500.0,0.00027671,2]
[314362037,1708230641706,-500.0,0.00027671,2]
[314362038,1708230641715,-500.0,0.00027671,2]
[314362039,1708230641725,-500.0,0.00027671,2]
[314362040,1708230641734,-500.0,0.00027671,2]
[314362041,1708230641845,-528.81669082,0.00027671,2]
[314362042,1708230641854,-500.0,0.00027671,2]
[314362043,1708230641863,-500.0,0.00027671,2]
[314362045,1708230641873,-6015.14,0.00027671,2]
[314362047,1708230641882,-500.0,0.00027671,2]
[314362049,1708230641891,-504.21440813,0.00027671,2]
[314362051,1708230641900,-250.0,0.00027671,2]
[314362052,1708230641909,-500.0,0.00027671,2]
[314362053,1708230641918,-500.0,0.00027671,2]
[314362054,1708230641927,-500.0,0.00027671,2]
[314362055,1708230641935,-500.0,0.00027671,2]
[314362056,1708230641944,-500.0,0.00027671,2]
[314362057,1708230641953,-500.0,0.00027671,2]
[314362058,1708230641962,-564.59138388,0.00027671,2]
[314362059,1708230641971,-500.0,0.00027671,2]
[314362060,1708230641981,-500.0,0.00027671,2]
[314362061,1708230641990,-500.0,0.00027671,2]
[314362062,1708230641999,-500.0,0.00027671,2]
[314362063,1708230642009,-500.0,0.00027671,2]
[314362064,1708230642018,-500.0,0.00027671,2]
[314362065,1708230642027,-500.0,0.00027671,2]
[314362066,1708230642036,-500.0,0.00027671,2]
[314362067,1708230642045,-616.22470133,0.00027671,2]
[314362068,1708230642054,-500.0,0.00027671,2]
[314362069,1708230642063,-500.0,0.00027671,2]
[314362070,1708230642071,-765.44,0.00027671,2]
[314362071,1708230642081,-500.0,0.00027671,2]
[314362072,1708230642090,-5040.44,0.00027671,2]
[314362073,1708230642099,-500.0,0.00027671,2]
[314362074,1708230642107,-512.2438589,0.00027671,2]
[314362075,1708230642116,-985.89,0.00027671,2]
[314362076,1708230642126,-344.38303373,0.00027671,2]
[314362077,1708230642135,-500.0,0.00027671,2]
[314362078,1708230642143,-500.0,0.00027671,2]
[314362079,1708230642152,-770.73,0.00027671,2]
[314362080,1708230642161,-500.0,0.00027671,2]
[314362081,1708230642170,-558.8239809,0.00027671,2]
[314362082,1708230642179,-2024.39,0.00027671,2]
[314362083,1708230642188,-500.0,0.00027671,2]
[314362084,1708230642197,-504.86893184,0.00027671,2]
[314362085,1708230642206,-514.36,0.00027671,2]
[314362086,1708230642214,-507.44634738,0.00027671,2]
[314362087,1708230642224,-3286.04,0.00027671,2]
[314362088,1708230642233,-500.0,0.00027671,2]
[314362089,1708230642242,-762.58,0.00027671,2]
[314362090,1708230642252,-500.0,0.00027671,2]
[314362091,1708230642261,-1082.01,0.00027671,2]
[314362092,1708230642270,-563.85,0.00027671,2]
[314362093,1708230642279,-500.0,0.00027671,2]
[314362094,1708230642288,-5037.25,0.00027671,2]
[314362095,1708230642298,-500.0,0.00027671,2]
[314362096,1708230642307,-678.8,0.00027671,2]
[314362097,1708230642316,-500.0,0.00027671,2]
[314362098,1708230642326,-500.0,0.00027671,2]
[314362099,1708230642335,-1000.0,0.00027671,2]
[314362100,1708230642344,-500.0,0.00027671,2]
[314362101,1708230642353,-500.0,0.00027671,2]
[314362102,1708230642363,-500.0,0.00027671,2]
[314362103,1708230642373,-527.43,0.00027671,2]
[314362104,1708230642382,-3900.21,0.00027671,2]
[314362105,1708230642392,-894.78,0.00027671,2]
[314362106,1708230642401,-500.0,0.00027671,2]
[314362107,1708230642411,-500.0,0.00027671,2]
[314362108,1708230642422,-503.19452163,0.00027671,2]
[314362109,1708230642431,-468.51717466,0.00027671,2]
[314362110,1708230642440,-500.0,0.00027671,2]
[314362111,1708230642450,-500.0,0.00027671,2]
[314362112,1708230642459,-480.011166,0.00027671,2]
[314362113,1708230642468,-923.99,0.00027671,2]
[314362114,1708230642477,-610.54,0.00027671,2]
[314362115,1708230642487,-502.62782781,0.00027671,2]
[314362116,1708230642496,-500.0,0.00027671,2]
[314362117,1708230642506,-500.0,0.00027671,2]
[314362118,1708230642515,-465.01399377,0.00027944,2]
[314362119,1708230642526,-500.0,0.00027945,2]
[314362120,1708230642536,-500.0,0.00027945,2]
[314362121,1708230642545,-500.0,0.00027945,2]
[314362122,1708230642554,-500.0,0.00027945,2]
[314362123,1708230642563,-500.0,0.00027945,2]
[314362124,1708230642573,-500.0,0.00027945,2]
[314362125,1708230642582,-618.67348345,0.00027945,2]
[314362126,1708230642592,-970.26,0.00027945,2]
[314362127,1708230642602,-394.90630849,0.00027945,2]
[314362128,1708230642612,-901.99,0.00027945,2]
[314362129,1708230642622,-268.12799793,0.00027945,2]
[314362130,1708230642631,-500.0,0.00027945,2]
[314362131,1708230642641,-500.0,0.00027945,2]
[314362132,1708230642650,-500.0,0.00027945,2]
[314362133,1708230642660,-500.0,0.00027945,2]
[314362134,1708230642673,-519.71443797,0.00027945,2]
[314362135,1708230642682,-500.0,0.00027945,2]
[314362136,1708230642691,-500.0,0.00027945,2]
[314362137,1708230642700,-500.0,0.00027945,2]
[314362138,1708230642710,-500.0,0.00027945,2]
[314362139,1708230642719,-576.93,0.00027945,2]
[314362140,1708230642729,-500.0,0.00027945,2]
[314362141,1708230642738,-500.0,0.00027945,2]
[314362142,1708230642748,-500.0,0.00027945,2]
[314362143,1708230642759,-3539.24,0.00027945,2]
[314362144,1708230642769,-500.0,0.00027945,2]
[314362145,1708230642778,-6015.14,0.00027945,2]
[314362146,1708230642788,-500.0,0.00027945,2]
[314362147,1708230642798,-500.0,0.00027945,2]
[314362148,1708230642807,-500.0,0.00027945,2]
[314362149,1708230642816,-500.0,0.00027945,2]
[314362150,1708230642825,-500.0,0.00027945,2]
[314362151,1708230642835,-534.11514124,0.00027945,2]
[314362152,1708230642844,-765.44,0.00027945,2]
[314362153,1708230642854,-500.0,0.00027945,2]
[314362154,1708230642864,-5040.44,0.00027945,2]
[314362155,1708230642873,-500.0,0.00027945,2]
[314362156,1708230642883,-985.89,0.00027945,2]
[314362157,1708230642893,-500.0,0.00027945,2]
[314362158,1708230642902,-770.73,0.00027945,2]
[314362159,1708230642912,-2024.39,0.00027945,2]
[314362160,1708230642922,-514.36,0.00027945,2]
[314362161,1708230642931,-3286.04,0.00027945,2]
[314362162,1708230642941,-500.0,0.00027945,2]
[314362163,1708230642951,-762.58,0.00027945,2]
[314362164,1708230642961,-1082.01,0.00027945,2]
[314362165,1708230642970,-563.85,0.00027945,2]
[314362166,1708230642979,-5037.25,0.00027945,2]
[314362167,1708230642989,-500.0,0.00027945,2]
[314362168,1708230642999,-678.8,0.00027945,2]
[314362169,1708230643008,-500.0,0.00027945,2]
[314362170,1708230643018,-500.0,0.00027945,2]
[314362171,1708230643027,-500.0,0.00027945,2]
[314362172,1708230643036,-527.43,0.00027945,2]
[314362173,1708230643046,-3900.21,0.00027945,2]
[314362174,1708230643055,-894.78,0.00027945,2]
[314362176,1708230643065,-500.0,0.00027945,2]
[314362177,1708230643075,-500.0,0.00027945,2]
[314362179,1708230643084,-500.0,0.00027945,2]
[314362181,1708230643094,-500.0,0.00027945,2]
[314362182,1708230643104,-923.99,0.00027945,2]
[314362183,1708230643114,-610.54,0.00027945,2]
[314362185,1708230643124,-500.0,0.00027945,2]
[314362186,1708230643134,-500.0,0.00028219,2]
[314362187,1708230643144,-500.0,0.00028219,2]
[314362188,1708230643154,-500.0,0.00028219,2]
[314362189,1708230643163,-516.56456327,0.00028219,2]
[314362190,1708230643173,-500.0,0.00028219,2]
[314362191,1708230643183,-500.0,0.00028219,2]
[314362192,1708230643192,-970.26,0.00028219,2]
[314362193,1708230643202,-901.99,0.00028219,2]
[314362194,1708230643211,-500.0,0.00028219,2]
[314362195,1708230643221,-500.0,0.00028219,2]
[314362196,1708230643231,-500.0,0.00028219,2]
[314362197,1708230643240,-500.0,0.00028219,2]
[314362198,1708230643250,-576.93,0.00028219,2]
[314362199,1708230643259,-500.0,0.00028219,2]
[314362200,1708230643268,-500.0,0.00028219,2]
[314362201,1708230643277,-3539.24,0.00028219,2]
[314362203,1708230643287,-6015.14,0.00028219,2]
[314362205,1708230643296,-500.0,0.00028219,2]
[314362206,1708230643306,-500.0,0.00028219,2]
[314362208,1708230643315,-500.0,0.00028219,2]
[314362209,1708230643325,-500.0,0.00028219,2]
[314362210,1708230643334,-765.44,0.00028219,2]
[314362211,1708230643344,-500.0,0.00028219,2]
[314362212,1708230643353,-5040.44,0.00028219,2]
[314362213,1708230643362,-500.0,0.00028219,2]
[314362214,1708230643371,-985.89,0.00028219,2]
[314362215,1708230643381,-770.73,0.00028219,2]
[314362216,1708230643391,-2024.39,0.00028219,2]
[314362217,1708230643401,-514.36,0.00028219,2]
[314362218,1708230643410,-3286.04,0.00028219,2]
[314362219,1708230643419,-500.0,0.00028219,2]
[314362220,1708230643428,-762.58,0.00028219,2]
[314362221,1708230643438,-1082.01,0.00028219,2]
[314362222,1708230643447,-563.85,0.00028219,2]
[314362223,1708230643456,-5037.25,0.00028219,2]
[314362224,1708230643465,-678.8,0.00028219,2]
[314362225,1708230643474,-373.21,0.00028219,2]
[314362226,1708230643483,-500.0,0.00028219,2]
[314362227,1708230643493,-527.43,0.00028219,2]
[314362228,1708230643502,-3900.21,0.00028219,2]
[314362229,1708230643512,-894.78,0.00028219,2]
[314362230,1708230643521,-500.0,0.00028219,2]
[314362231,1708230643531,-500.0,0.00028219,2]
[314362232,1708230643541,-500.0,0.00028219,2]
[314362233,1708230643550,-500.0,0.00028219,2]
[314362234,1708230643560,-923.99,0.00028219,2]
[314362235,1708230643576,-610.54,0.00028219,2]
[314362236,1708230643705,-160.65196591,0.00028493,3]
[314362237,1708230643715,-500.0,0.00028493,2]
[314362238,1708230643725,-502.19323529,0.00028493,2]
[314362239,1708230643736,-500.0,0.00028493,2]
[314362240,1708230643746,-500.0,0.00028493,2]
[314362241,1708230643755,-500.0,0.00028493,2]
[314362242,1708230643764,-970.26,0.00028493,2]
[314362243,1708230643773,-901.99,0.00028493,2]
[314362244,1708230643783,-500.0,0.00028493,2]
[314362245,1708230643793,-500.0,0.00028493,2]
[314362246,1708230643802,-500.0,0.00028493,2]
[314362247,1708230643811,-500.0,0.00028493,2]
[314362248,1708230643821,-576.93,0.00028493,2]
[314362249,1708230643832,-500.0,0.00028493,2]
[314362250,1708230643841,-500.0,0.00028493,2]
[314362251,1708230643851,-3539.24,0.00028493,2]
[314362252,1708230643860,-6015.14,0.00028493,2]
[314362253,1708230643870,-500.0,0.00028493,2]
[314362254,1708230643880,-500.0,0.00028493,2]
[314362255,1708230643890,-500.0,0.00028493,2]
[314362256,1708230643900,-500.0,0.00028493,2]
[314362257,1708230643910,-765.44,0.00028493,2]
[314362258,1708230643920,-500.0,0.00028493,2]
[314362259,1708230643929,-5040.44,0.00028493,2]
[314362260,1708230643939,-500.0,0.00028493,2]
[314362261,1708230643948,-985.89,0.00028493,2]
[314362262,1708230643957,-770.73,0.00028493,2]
[314362263,1708230643967,-2024.39,0.00028493,2]
[314362264,1708230643976,-514.36,0.00028493,2]
[314362265,1708230643985,-3286.04,0.00028493,2]
[314362266,1708230643994,-500.0,0.00028493,2]
[314362267,1708230644004,-762.58,0.00028493,2]
[314362268,1708230644014,-1082.01,0.00028493,2]
[314362269,1708230644024,-563.85,0.00028493,2]
[314362270,1708230644034,-5037.25,0.00028493,2]
[314362271,1708230644043,-678.8,0.00028493,2]
[314362272,1708230644053,-500.0,0.00028493,2]
[314362273,1708230644063,-527.43,0.00028493,2]
[314362274,1708230644072,-3900.21,0.00028493,2]
[314362275,1708230644081,-894.78,0.00028493,2]
[314362276,1708230644090,-500.0,0.00028493,2]
[314362277,1708230644099,-500.0,0.00028493,2]
[314362280,1708230644109,-500.0,0.00028493,2]
[314362282,1708230644120,-500.0,0.00028493,2]
[314362284,1708230644129,-923.99,0.00028493,2]
[314362287,1708230644139,-610.54,0.00028493,2]
[314362288,1708230644148,-448.58,0.00028757,3]
[314362290,1708230644156,-448.58,0.00028757,3]
[314362291,1708230644165,-500.29871377,0.00028767,2]
[314362293,1708230644175,-500.0,0.00028767,2]
[314362295,1708230644184,-500.0,0.00028767,2]
[314362296,1708230644194,-500.0,0.00028767,2]
[314362298,1708230644204,-970.26,0.00028767,2]
[314362300,1708230644213,-901.99,0.00028767,2]
[314362302,1708230644223,-500.0,0.00028767,2]
[314362304,1708230644232,-500.0,0.00028767,2]
[314362305,1708230644242,-500.0,0.00028767,2]
[314362307,1708230644252,-545.53329183,0.00028767,2]
[314362308,1708230644261,-155.0,0.00028767,2]
[314362310,1708230644271,-576.93,0.00028767,2]
[314362312,1708230644281,-519.12545864,0.00028767,2]
[314362313,1708230644290,-500.0,0.00028767,2]
[314362315,1708230644300,-3539.24,0.00028767,2]
[314362317,1708230644309,-6015.14,0.00028767,2]
[314362318,1708230644319,-500.0,0.00028767,2]
[314362319,1708230644328,-500.0,0.00028767,2]
[314362320,1708230644338,-500.0,0.00028767,2]
[314362322,1708230644347,-500.0,0.00028767,2]
[314362323,1708230644357,-765.44,0.00028767,2]
[314362325,1708230644367,-500.0,0.00028767,2]
[314362326,1708230644376,-3663.80587207,0.00028767,2]
[314362340,1708230646716,-672.89,0.00027387,3]
[314362341,1708230646727,-610.16,0.00027397,2]
[314362342,1708230646736,-610.16,0.00027671,2]
[314362343,1708230646747,-610.16,0.00027945,2]
[314362344,1708230646756,-610.16,0.00028219,2]
[314362345,1708230646765,-610.16,0.00028493,2]
[314362346,1708230646775,-1376.63412793,0.00028767,2]
[314362347,1708230646784,-500.0,0.00028767,2]
[314362348,1708230646794,-985.89,0.00028767,2]
[314362349,1708230646803,-2024.39,0.00028767,2]
[314362350,1708230646812,-514.36,0.00028767,2]
[314362351,1708230646821,-3286.04,0.00028767,2]
[314362352,1708230646831,-500.0,0.00028767,2]
[314362353,1708230646839,-762.58,0.00028767,2]
[314362354,1708230646848,-1082.01,0.00028767,2]
[314362355,1708230646857,-563.85,0.00028767,2]
[314362356,1708230646867,-3121.38245906,0.00028767,2]
[314362372,1708231831823,-295.12626262,0.00024382,2]
[314362374,1708231831833,-258.33133698,0.00024383,2]
[314362376,1708231831842,-212.24927275,0.00024384,2]
[314362378,1708231831851,-158.05803354,0.00024385,2]
[314362379,1708231831860,-2464.64581254,0.00024486,2]
[314362386,1708231837851,-17295.6591193,0.00024486,2]
[314362388,1708231837861,-24900.0,0.00024487,2]
[314362390,1708231837870,-174.27358345,0.00024597,2]
[314362391,1708231837879,-218.264053,0.00024697,2]
[314362392,1708231837889,-169.8174878,0.00025146,2]
[314362393,1708231837898,-200.0,0.00025479,2]
[314362394,1708231837907,-330.64495168,0.00026025,3]
[314362395,1708231837916,-7208.89572516,0.0002614,2]
[314362396,1708231837926,-3095.56807475,0.0002614,2]
[314362397,1708231837935,-2153.71086332,0.0002614,2]
[314362398,1708231837945,-41290.92294446,0.0002614,2]
[314362399,1708231837955,-1221.27398028,0.00026393,2]
[314362400,1708231837964,-5745.22631674,0.00027,2]
[314362401,1708231837974,-1323.13,0.00027277,3]
[314362402,1708231837984,-1905.31,0.00027286,3]
[314362403,1708231837993,-1587.75,0.00027286,3]
[314362404,1708231838002,-336.43,0.00027287,3]
[314362405,1708231838012,-168.22,0.00027287,3]
[314362406,1708231838022,-504.66,0.00027287,3]
[314362407,1708231838031,-391.81211543,0.00027296,2]
[314362408,1708231838040,-619.10977724,0.00027296,2]
[314362409,1708231838050,-180.41614724,0.00027296,2]
[314362410,1708231838061,-500.0,0.00027296,2]
[314362411,1708231838071,-500.0,0.00027296,2]
[314362412,1708231838080,-500.0,0.00027296,2]
[314362413,1708231838089,-441.08884816,0.00027296,2]
[314362414,1708231838098,-526.3090388,0.00027296,2]
[314362415,1708231838107,-500.0,0.00027296,2]
[314362416,1708231838117,-500.0,0.00027296,2]
[314362417,1708231838126,-238.42482762,0.00027296,2]
[314362418,1708231838135,-500.0,0.00027296,2]
[314362419,1708231838144,-500.0,0.00027296,2]
[314362420,1708231838153,-500.0,0.00027296,2]
[314362421,1708231838162,-435.34679491,0.00027296,2]
[314362422,1708231838172,-70038.92225258,0.00027297,2]
[314362423,1708231838181,-156.66614978,0.00027297,2]
[314362424,1708231838190,-348.67972211,0.00027396,2]
[314362425,1708231838201,-405.92914822,0.00027397,2]
[314362426,1708231838210,-551.55464271,0.00027397,2]
[314362427,1708231838219,-180.50850121,0.00027397,2]
[314362428,1708231838229,-500.0,0.00027397,2]
[314362429,1708231838238,-500.0,0.00027397,2]
[314362430,1708231838248,-500.0,0.00027397,2]
[314362431,1708231838258,-500.0,0.00027397,2]
[314362432,1708231838268,-500.0,0.00027397,2]
[314362433,1708231838278,-201.23905066,0.00027397,2]
[314362434,1708231838288,-500.0,0.00027397,2]
[314362435,1708231838297,-500.0,0.00027397,2]
[314362436,1708231838307,-500.0,0.00027397,2]
[314362437,1708231838316,-500.0,0.00027397,2]
[314362438,1708231838325,-500.0,0.00027397,2]
[314362439,1708231838334,-500.0,0.00027397,2]
[314362440,1708231838343,-500.0,0.00027397,2]
[314362441,1708231838353,-400.09471443,0.00027397,2]
[314362442,1708231838362,-367.17290942,0.00027397,2]
[314362443,1708231838371,-500.0,0.00027397,2]
[314362444,1708231838381,-500.0,0.00027397,2]
[314362445,1708231838390,-516.86774964,0.00027397,2]
[314362446,1708231838399,-500.0,0.00027397,2]
[314362447,1708231838409,-500.0,0.00027397,2]
[314362448,1708231838418,-500.0,0.00027397,2]
[314362449,1708231838427,-500.0,0.00027397,2]
[314362450,1708231838521,-500.0,0.00027397,2]
[314362451,1708231838530,-500.0,0.00027397,2]
[314362452,1708231838539,-500.0,0.00027397,2]
[314362453,1708231838549,-500.0,0.00027397,2]
[314362454,1708231838558,-500.0,0.00027397,2]
[314362455,1708231838568,-505.05894013,0.00027397,2]
[314362456,1708231838577,-504.42826121,0.00027397,2]
[314362457,1708231838586,-500.0,0.00027397,2]
[314362458,1708231838595,-500.0,0.00027397,2]
[314362459,1708231838604,-699.03,0.00027397,2]
[314362460,1708231838613,-506.3910168,0.00027397,2]
[314362461,1708231838623,-500.0,0.00027397,2]
[314362462,1708231838632,-500.0,0.00027397,2]
[314362463,1708231838641,-500.0,0.00027397,2]
[314362464,1708231838651,-500.0,0.00027397,2]
[314362465,1708231838660,-500.0,0.00027397,2]
[314362466,1708231838669,-1000.0,0.00027397,2]
[314362467,1708231838678,-557.30126923,0.00027397,2]
[314362468,1708231838686,-500.0,0.00027397,2]
[314362469,1708231838695,-500.0,0.00027397,2]
[314362470,1708231838705,-551.95411662,0.00027397,2]
[314362471,1708231838715,-500.0,0.00027397,2]
[314362472,1708231838724,-500.0,0.00027397,2]
[314362473,1708231838733,-500.0,0.00027397,2]
[314362474,1708231838742,-468.51717466,0.00027397,2]
[314362475,1708231838751,-500.0,0.00027397,2]
[314362476,1708231838760,-500.0,0.00027397,2]
[314362477,1708231838769,-500.0,0.00027397,2]
[314362478,1708231838779,-501.46624932,0.00027397,2]
[314362479,1708231838788,-500.0,0.00027397,2]
[314362480,1708231838797,-500.0,0.00027397,2]
[314362481,1708231838806,-500.0,0.00027397,2]
[314362482,1708231838815,-500.0,0.00027397,2]
[314362483,1708231838824,-500.0,0.00027397,2]
[314362484,1708231838833,-500.0,0.00027397,2]
[314362485,1708231838842,-500.0,0.00027397,2]
[314362486,1708231838851,-500.0,0.00027397,2]
[314362487,1708231838860,-504.21440813,0.00027397,2]
[314362488,1708231838869,-544.61075408,0.00027397,2]
[314362489,1708231838878,-250.0,0.00027397,2]
[314362490,1708231838887,-500.0,0.00027397,2]
[314362491,1708231838896,-500.0,0.00027397,2]
[314362492,1708231838905,-500.0,0.00027397,2]
[314362493,1708231838914,-291.48,0.00027397,2]
[314362494,1708231838923,-521.37862085,0.00027397,2]
[314362495,1708231838932,-500.0,0.00027397,2]
[314362496,1708231838941,-500.0,0.00027397,2]
[314362497,1708231838951,-500.0,0.00027397,2]
[314362498,1708231838961,-500.0,0.00027397,2]
[314362499,1708231838971,-500.0,0.00027397,2]
[314362500,1708231838984,-500.0,0.00027397,2]
[314362501,1708231838994,-500.0,0.00027397,2]
[314362502,1708231839003,-500.0,0.00027397,2]
[314362503,1708231839012,-500.0,0.00027397,2]
[314362504,1708231839022,-500.0,0.00027397,2]
[314362505,1708231839030,-1012.44,0.00027397,2]
[314362506,1708231839040,-500.0,0.00027397,2]
[314362507,1708231839050,-500.0,0.00027397,2]
[314362508,1708231839060,-500.0,0.00027397,2]
[314362509,1708231839069,-500.0,0.00027397,2]
[314362510,1708231839078,-500.0,0.00027397,2]
[314362511,1708231839087,-500.0,0.00027397,2]
[314362512,1708231839096,-937.13,0.00027397,2]
[314362513,1708231839107,-500.0,0.00027397,2]
[314362514,1708231839116,-500.0,0.00027397,2]
[314362515,1708231839126,-500.0,0.00027397,2]
[314362516,1708231839135,-500.0,0.00027397,2]
[314362517,1708231839144,-172.36693185,0.00027397,2]
[314362518,1708231839154,-500.0,0.00027397,2]
[314362519,1708231839163,-500.0,0.00027397,2]
[314362520,1708231839173,-500.0,0.00027397,2]
[314362521,1708231839181,-500.0,0.00027397,2]
[314362522,1708231839191,-633.87849119,0.00027397,2]
[314362523,1708231839200,-500.0,0.00027397,2]
[314362524,1708231839210,-500.0,0.00027397,2]
[314362525,1708231839219,-500.0,0.00027397,2]
[314362526,1708231839228,-500.0,0.00027397,2]
[314362527,1708231839237,-500.0,0.00027397,2]
[314362528,1708231839247,-500.0,0.00027397,2]
[314362529,1708231839256,-500.0,0.00027397,2]
[314362530,1708231839266,-500.0,0.00027397,2]
[314362531,1708231839276,-500.0,0.00027397,2]
[314362532,1708231839285,-500.0,0.00027397,2]
[314362533,1708231839294,-500.0,0.00027397,2]
[314362534,1708231839304,-500.0,0.00027397,2]
[314362535,1708231839313,-540.35,0.00027397,2]
[314362536,1708231839322,-500.0,0.00027397,2]
[314362537,1708231839331,-550.50511906,0.00027397,2]
[314362538,1708231839340,-500.0,0.00027397,2]
[314362539,1708231839349,-500.0,0.00027397,2]
[314362540,1708231839358,-500.0,0.00027397,2]
[314362541,1708231839367,-378.5359668,0.00027397,2]
[314362542,1708231839376,-500.0,0.00027397,2]
[314362543,1708231839385,-544.02446171,0.00027397,2]
[314362544,1708231839395,-500.0,0.00027397,2]
[314362545,1708231839404,-500.0,0.00027397,2]
[314362546,1708231839413,-500.0,0.00027397,2]
[314362547,1708231839422,-155.0,0.00027397,2]
[314362548,1708231839431,-500.0,0.00027397,2]
[314362549,1708231839440,-500.0,0.00027397,2]
[314362550,1708231839449,-500.0,0.00027397,2]
[314362551,1708231839458,-500.0,0.00027397,2]
[314362552,1708231839468,-500.0,0.00027397,2]
[314362553,1708231839477,-602.01,0.00027397,2]
[314362554,1708231839486,-500.0,0.00027397,2]
[314362555,1708231839495,-506.80406058,0.00027397,2]
[314362556,1708231839504,-500.0,0.00027397,2]
[314362557,1708231839513,-506.30355559,0.00027397,2]
[314362558,1708231839522,-232.56756896,0.00027397,2]
[314362559,1708231839531,-500.0,0.00027397,2]
[314362560,1708231839540,-500.0,0.00027397,2]
[314362561,1708231839549,-500.0,0.00027397,2]
[314362562,1708231839558,-597.86061115,0.00027397,2]
[314362563,1708231839567,-500.0,0.00027397,2]
[314362564,1708231839576,-765.44,0.00027397,2]
[314362565,1708231839585,-500.0,0.00027397,2]
[314362566,1708231839595,-6015.14,0.00027397,2]
[314362567,1708231839604,-500.0,0.00027397,2]
[314362568,1708231839613,-527.43,0.00027397,2]
[314362569,1708231839622,-500.0,0.00027397,2]
[314362570,1708231839631,-500.0,0.00027397,2]
[314362571,1708231839642,-500.0,0.00027397,2]
[314362572,1708231839651,-500.0,0.00027397,2]
[314362573,1708231839659,-500.0,0.00027397,2]
[314362574,1708231839669,-500.0,0.00027397,2]
[314362575,1708231839678,-465.01399377,0.00027397,2]
[314362576,1708231839687,-500.0,0.00027397,2]
[314362577,1708231839697,-500.0,0.00027397,2]
[314362578,1708231839706,-500.0,0.00027397,2]
[314362579,1708231839715,-500.0,0.00027397,2]